fUSD/lending_fUSD_20241107
["ID","MTS","AMOUNT","RATE_DAILY","PERIOD"]
[341587842,1731011452536,-500.0,0.00027671,2]
[341587843,1731011452545,-500.0,0.00027671,2]
[341587844,1731011452553,-500.0,0.00027671,2]
[341587845,1731011452563,-512.03,0.00027671,2]
[341587846,1731011452639,-91.98424231,0.00027671,2]
[341587847,1731011452842,-541.19575769,0.00027671,2]
[341587848,1731011452852,-500.0,0.00027671,2]
[341587849,1731011452863,-500.0,0.00027671,2]
[341587850,1731011452872,-151.0,0.00027671,7]
[341587851,1731011452881,-500.0,0.00027671,2]
[341587852,1731011452891,-500.0,0.00027671,2]
[341587853,1731011452900,-500.0,0.00027671,2]
[341587854,1731011452910,-500.0,0.00027671,2]
[341587855,1731011452919,-692.91,0.00027671,2]
[341587856,1731011452928,-1047.6,0.00027671,2]
[341587857,1731011452937,-730.81,0.00027671,2]
[341587858,1731011452947,-500.0,0.00027671,2]
[341587859,1731011452960,-593.79687912,0.00027671,2]
[341587860,1731011452969,-1016.1,0.00027671,2]
[341587861,1731011452979,-1860.33,0.00027671,2]
[341587862,1731011452988,-1639.847469,0.00027671,2]
[341587863,1731011452999,-500.0,0.00027671,2]
[341587864,1731011453008,-163.83,0.00027671,2]
[341587865,1731011453020,-602.92,0.00027671,2]
[341587866,1731011453032,-500.0,0.00027671,2]
[341587867,1731011453041,-500.0,0.00027671,2]
[341587868,1731011453050,-500.0,0.00027671,2]
[341587869,1731011453059,-500.0,0.00027671,2]
[341587870,1731011453069,-1864.69,0.00027671,2]
[341587871,1731011453078,-1880.48,0.00027671,2]
[341587872,1731011453087,-151.0,0.00027671,7]
[341587873,1731011453096,-500.0,0.00027671,2]
[341587874,1731011453106,-500.0,0.00027671,2]
[341587875,1731011453116,-1023.36,0.00027671,2]
[341587876,1731011453125,-500.0,0.00027671,2]
[341587877,1731011453134,-759.25,0.00027671,2]
[341587878,1731011453143,-1882.14,0.00027671,2]
[341587879,1731011453152,-500.0,0.00027671,2]
[341587880,1731011453162,-984.672504,0.00027671,2]
[341587881,1731011453172,-12863.27,0.00027671,2]
[341587882,1731011453181,-500.0,0.00027671,2]
[341587883,1731011453190,-810.01,0.00027671,2]
[341587884,1731011453200,-529.48,0.00027671,2]
[341587885,1731011453209,-500.0,0.00027671,2]
[341587886,1731011453220,-741.68,0.00027671,2]
[341587887,1731011453230,-790.428663,0.00027671,7]
[341587888,1731011453239,-1287.22,0.00027671,2]
[341587889,1731011453249,-500.0,0.00027671,2]
[341587890,1731011453259,-504.3,0.00027671,2]
[341587891,1731011453269,-790.428663,0.00027671,7]
[341587892,1731011453278,-1180.37,0.00027671,2]
[341587893,1731011453287,-500.0,0.00027671,2]
[341587894,1731011453296,-844.4,0.00027671,2]
[341587895,1731011453306,-803.88,0.00027671,2]
[341587896,1731011453315,-500.0,0.00027671,2]
[341587897,1731011453324,-500.0,0.00027671,2]
[341587898,1731011453334,-500.0,0.00027671,2]
[341587899,1731011453343,-500.0,0.00027671,2]
[341587900,1731011453352,-374.93403144,0.00027671,2]
[341587901,1731011453363,-542.4,0.00027671,2]
[341587902,1731011453373,-794.89,0.00027671,2]
[341587903,1731011453382,-500.0,0.00027671,2]
[341587904,1731011453391,-4019.74,0.00027671,2]
[341587905,1731011453401,-500.0,0.00027671,2]
[341587906,1731011453409,-759.28,0.00027671,2]
[341587907,1731011453420,-500.0,0.00027671,2]
[341587908,1731011453430,-652.81,0.00027671,2]
[341587909,1731011453439,-3623.88,0.00027671,2]
[341587910,1731011453448,-706.87,0.00027671,2]
[341587911,1731011453458,-151.0,0.00027671,7]
[341587912,1731011453467,-1354.3,0.00027671,2]
[341587913,1731011453476,-576.29,0.00027671,2]
[341587914,1731011453485,-151.0,0.00027671,7]
[341587915,1731011453495,-534.58,0.00027671,2]
[341587916,1731011453504,-511.69,0.00027671,2]
[341587917,1731011453513,-500.0,0.00027671,2]
[341587918,1731011453523,-1135.74,0.00027671,2]
[341587919,1731011453532,-500.0,0.00027671,2]
[341587920,1731011453541,-3829.5,0.00027671,2]
[341587921,1731011453550,-500.0,0.00027671,2]
[341587922,1731011453560,-532.84,0.00027671,2]
[341587923,1731011453569,-1210.85,0.00027671,2]
[341587924,1731011453579,-2233.74,0.00027671,2]
[341587925,1731011453587,-1569.08,0.00027671,2]
[341587926,1731011453597,-154.685771,0.00027671,7]
[341587927,1731011453606,-500.0,0.00027671,2]
[341587928,1731011453616,-2095.57,0.00027671,2]
[341587929,1731011453626,-411.960432,0.00027671,7]
[341587930,1731011453634,-500.0,0.00027671,2]
[341587931,1731011453644,-993.67,0.00027671,2]
[341587932,1731011453653,-500.0,0.00027671,2]
[341587933,1731011453663,-1109.47,0.00027671,2]
[341587934,1731011453671,-411.960432,0.00027671,7]
[341587935,1731011453680,-1076.61,0.00027671,2]
[341587936,1731011453691,-2427.73,0.00027671,2]
[341587937,1731011453700,-500.0,0.00027671,2]
[341587938,1731011453710,-347.026174,0.00027671,7]
[341587939,1731011453720,-822.66,0.00027671,2]
[341587940,1731011453730,-810.32,0.00027671,2]
[341587941,1731011453739,-822.49,0.00027671,2]
[341587942,1731011453747,-534.98,0.00027671,2]
[341587943,1731011453756,-500.0,0.00027671,2]
[341587944,1731011453766,-1190.75,0.00027671,2]
[341587945,1731011453776,-860.77,0.00027671,2]
[341587946,1731011453788,-347.026174,0.00027671,7]
[341587947,1731011453797,-500.0,0.00027671,2]
[341587948,1731011453806,-620.7,0.00027671,2]
[341587949,1731011453816,-500.0,0.00027671,2]
[341587950,1731011453826,-500.0,0.00027671,2]
[341587951,1731011453835,-500.0,0.00027671,2]
[341587952,1731011453844,-500.0,0.00027671,2]
[341587953,1731011453854,-500.0,0.00027671,2]
[341587954,1731011453863,-500.0,0.00027671,2]
[341587955,1731011453873,-500.0,0.00027671,2]
[341587956,1731011453882,-539.76,0.00027671,2]
[341587957,1731011453892,-2260.02,0.00027671,2]
[341587958,1731011453903,-1549.38,0.00027671,2]
[341587959,1731011453912,-500.0,0.00027671,2]
[341587960,1731011453922,-823.25,0.00027671,2]
[341587961,1731011453932,-1096.41,0.00027671,2]
[341587962,1731011453942,-500.0,0.00027671,2]
[341587963,1731011453957,-500.0,0.00027671,2]
[341587964,1731011453966,-669.24,0.00027671,2]
[341587965,1731011453976,-789.48,0.00027671,2]
[341587966,1731011453986,-1841.15,0.00027671,2]
[341587967,1731011453996,-500.0,0.00027671,2]
[341587968,1731011454006,-548.44,0.00027671,2]
[341587969,1731011454015,-698.1,0.00027671,2]
[341587970,1731011454025,-569.76,0.00027671,2]
[341587971,1731011454034,-1008.09,0.00027671,2]
[341587972,1731011454043,-500.0,0.00027671,2]
[341587973,1731011454052,-673.81,0.00027671,2]
[341587974,1731011454061,-500.0,0.00027671,2]
[341587975,1731011454070,-500.0,0.00027671,2]
[341587976,1731011454081,-2497.63,0.00027671,2]
[341587977,1731011454091,-500.0,0.00027671,2]
[341587978,1731011454099,-835.05,0.00027671,2]
[341587979,1731011454108,-1408.31,0.00027671,2]
[341587980,1731011454118,-904.6,0.00027671,2]
[341587981,1731011454127,-561.13,0.00027671,2]
[341587982,1731011454136,-500.0,0.00027671,2]
[341587983,1731011454146,-946.87,0.00027671,2]
[341587984,1731011454155,-526.97,0.00027671,2]
[341587985,1731011454164,-6882.67,0.00027671,2]
[341587986,1731011454174,-500.0,0.00027671,2]
[341587987,1731011454182,-1999.04,0.00027671,2]
[341587988,1731011454191,-821.23,0.00027671,2]
[341587989,1731011454200,-417.14285605,0.00027671,2]
[341587990,1731011454209,-560.03,0.00027671,2]
[341587991,1731011454218,-687.39,0.00027671,2]
[341587992,1731011454227,-2301.65,0.00027671,2]
[341587993,1731011454236,-1093.66,0.00027671,2]
[341587994,1731011454246,-500.0,0.00027671,2]
[341587995,1731011454255,-500.0,0.00027671,2]
[341587996,1731011454264,-982.98,0.00027671,2]
[341587997,1731011454273,-991.72,0.00027671,2]
[341587998,1731011454282,-5959.66,0.00027671,2]
[341587999,1731011454291,-500.0,0.00027671,2]
[341588000,1731011454301,-500.0,0.00027671,2]
[341588001,1731011454310,-151.0,0.00027671,7]
[341588002,1731011454320,-901.99,0.00027671,2]
[341588003,1731011454329,-500.0,0.00027671,2]
[341588004,1731011454339,-731.06,0.00027671,2]
[341588005,1731011454348,-599.5901086,0.00027671,2]
[341588006,1731011454357,-1677.15,0.00027671,2]
[341588007,1731011454367,-151.0,0.00027671,7]
[341588008,1731011454376,-151.0,0.00027671,7]
[341588009,1731011454386,-571.58,0.00027671,2]
[341588010,1731011454396,-500.0,0.00027671,2]
[341588011,1731011454404,-500.0,0.00027671,2]
[341588012,1731011454414,-500.0,0.00027671,2]
[341588013,1731011454424,-1253.48,0.00027671,2]
[341588014,1731011454433,-283.745,0.00027671,7]
[341588015,1731011454442,-151.0,0.00027671,7]
[341588016,1731011454451,-515.96,0.00027671,2]
[341588017,1731011454460,-6458.46,0.00027671,2]
[341588018,1731011454469,-500.0,0.00027671,2]
[341588019,1731011454478,-500.0,0.00027671,2]
[341588020,1731011454487,-4746.89,0.00027671,2]
[341588021,1731011454496,-500.0,0.00027671,2]
[341588022,1731011454506,-566.19490616,0.00027671,2]
[341588023,1731011454515,-500.0,0.00027671,2]
[341588024,1731011454525,-669.2,0.00027671,2]
[341588025,1731011454534,-500.0,0.00027671,2]
[341588026,1731011454543,-500.0,0.00027671,2]
[341588027,1731011454552,-500.0,0.00027671,2]
[341588028,1731011454561,-667.25,0.00027671,2]
[341588029,1731011454571,-800.33,0.00027671,2]
[341588030,1731011454580,-1504.63,0.00027671,2]
[341588031,1731011454589,-151.0,0.00027671,7]
[341588032,1731011454598,-752.87,0.00027671,2]
[341588033,1731011454607,-595.99,0.00027711,2]
[341588034,1731011454617,-258.576633,0.00027712,7]
[341588035,1731011454627,-290.1105,0.00027712,7]
[341588036,1731011454636,-213.398111,0.00027712,7]
[341588037,1731011454645,-213.398111,0.00027712,7]
[341588038,1731011454655,-151.0,0.00027712,7]
[341588039,1731011454663,-151.0,0.00027712,7]
[341588040,1731011454673,-248.368801,0.00027712,7]
[341588041,1731011454682,-248.368801,0.00027712,7]
[341588042,1731011454691,-543.592031,0.00027712,7]
[341588043,1731011454700,-543.592031,0.00027712,7]
[341588044,1731011454709,-151.0,0.00027712,7]
[341588045,1731011454719,-290.794095,0.00027712,7]
[341588046,1731011454728,-290.794095,0.00027712,7]
[341588047,1731011454737,-1000.0,0.00027712,2]
[341588048,1731011454746,-1210.33,0.00027712,2]
[341588049,1731011454755,-588.8,0.00027712,2]
[341588050,1731011454764,-151.0,0.00027712,7]
[341588051,1731011454773,-609.69,0.00027712,2]
[341588052,1731011454782,-500.0,0.00027712,2]
[341588053,1731011454792,-500.0,0.00027712,2]
[341588054,1731011454801,-151.0,0.00027712,7]
[341588055,1731011454810,-284.936427,0.00027712,7]
[341588056,1731011454819,-346.79932811,0.00027712,2]
[341588057,1731011454828,-284.936427,0.00027712,7]
[341588058,1731011454838,-500.0,0.00027712,2]
[341588059,1731011454847,-729.75,0.00027712,2]
[341588060,1731011454856,-151.0,0.00027712,7]
[341588061,1731011454866,-694.0,0.00027712,2]
[341588062,1731011454875,-151.0,0.00027712,7]
[341588063,1731011454884,-284.828298,0.00027712,7]
[341588064,1731011454894,-455.72586727,0.00027712,2]
[341588065,1731011454902,-605.27,0.00027712,2]
[341588066,1731011454913,-284.828298,0.00027712,7]
[341588067,1731011454922,-615.66,0.00027712,2]
[341588068,1731011454931,-618.11,0.00027712,2]
[341588069,1731011454940,-740.59,0.00027712,2]
[341588070,1731011454951,-661.7,0.00027712,2]
[341588071,1731011454961,-1146.09,0.00027712,2]
[341588072,1731011454970,-903.61,0.00027712,2]
[341588073,1731011454979,-611.13,0.00027712,2]
[341588074,1731011454988,-356.86858709,0.00027712,2]
[341588075,1731011454999,-536.6,0.00027712,2]
[341588076,1731011455008,-500.0,0.00027712,2]
[341588077,1731011455017,-197.582513,0.00027712,7]
[341588078,1731011455027,-1742.22,0.00027712,2]
[341588079,1731011455036,-197.582513,0.00027712,7]
[341588080,1731011455046,-681.8,0.00027712,2]
[341588081,1731011455055,-151.0,0.00027712,7]
[341588082,1731011455064,-500.0,0.00027712,2]
[341588083,1731011455074,-796.28,0.00027712,2]
[341588084,1731011455083,-1858.207835,0.00027712,7]
[341588085,1731011455092,-1858.207835,0.00027712,7]
[341588086,1731011455101,-267.972963,0.00027712,7]
[341588087,1731011455110,-1014.82,0.00027712,2]
[341588088,1731011455122,-267.972963,0.00027712,7]
[341588089,1731011455131,-869.27,0.00027712,2]
[341588090,1731011455140,-151.0,0.00027712,7]
[341588091,1731011455150,-1155.46,0.00027712,2]
[341588092,1731011455159,-803.98,0.00027712,2]
[341588093,1731011455168,-500.0,0.00027712,2]
[341588094,1731011455178,-151.0,0.00027712,7]
[341588095,1731011455187,-720.32,0.00027712,2]
[341588096,1731011455197,-500.0,0.00027712,2]
[341588097,1731011455206,-702.99,0.00027712,2]
[341588098,1731011455215,-196.027821,0.00027712,7]
[341588099,1731011455224,-500.0,0.00027712,2]
[341588100,1731011455233,-196.027821,0.00027712,7]
[341588101,1731011455242,-3273.297285,0.00027712,7]
[341588102,1731011455251,-614.56,0.00027712,2]
[341588103,1731011455260,-1075.73,0.00027712,2]
[341588104,1731011455270,-1171.81,0.00027712,2]
[341588105,1731011455280,-151.0,0.00027712,7]
[341588106,1731011455289,-1149.96,0.00027712,2]
[341588107,1731011455298,-937.81,0.00027712,2]
[341588108,1731011455307,-500.0,0.00027712,2]
[341588109,1731011455316,-758.67,0.00027712,2]
[341588110,1731011455325,-500.0,0.00027712,2]
[341588111,1731011455334,-304.431527,0.00027712,2]
[341588112,1731011455343,-500.0,0.00027712,2]
[341588113,1731011455353,-304.431527,0.00027712,2]
[341588114,1731011455362,-500.0,0.00027712,2]
[341588115,1731011455374,-573.46,0.00027712,2]
[341588116,1731011455388,-1475.73,0.00027712,2]
[341588117,1731011455397,-671.65,0.00027712,2]
[341588118,1731011455406,-695.77,0.00027712,2]
[341588119,1731011455416,-500.0,0.00027712,2]
[341588120,1731011455425,-10075.22,0.00027712,2]
[341588121,1731011455436,-819.35,0.00027712,2]
[341588122,1731011455445,-647.4,0.00027712,2]
[341588123,1731011455454,-956.23,0.00027712,2]
[341588124,1731011455463,-689.92,0.00027712,2]
[341588125,1731011455472,-4249.4,0.00027712,2]
[341588126,1731011455482,-500.0,0.00027712,2]
[341588127,1731011455491,-500.0,0.00027712,2]
[341588128,1731011455501,-929.84,0.00027712,2]
[341588129,1731011455509,-907.42,0.00027712,2]
[341588130,1731011455518,-3743.23,0.00027712,2]
[341588131,1731011455527,-568.89,0.00027712,2]
[341588132,1731011455536,-500.0,0.00027712,2]
[341588133,1731011455545,-500.0,0.00027712,2]
[341588134,1731011455555,-1929.67,0.00027712,2]
[341588135,1731011455564,-500.0,0.00027712,2]
[341588136,1731011455573,-500.0,0.00027712,2]
[341588137,1731011455582,-740.46,0.00027712,2]
[341588138,1731011455591,-500.0,0.00027712,2]
[341588139,1731011455600,-1116.29,0.00027712,2]
[341588140,1731011455610,-599.52,0.00027712,2]
[341588141,1731011455623,-801.48,0.00027712,2]
[341588142,1731011455632,-500.0,0.00027712,2]
[341588143,1731011455641,-821.57,0.00027712,2]
[341588144,1731011455650,-949.5,0.00027712,2]
[341588145,1731011455659,-999.73,0.00027712,2]
[341588146,1731011455668,-1580.55,0.00027712,2]
[341588147,1731011455677,-513.85,0.00027712,2]
[341588148,1731011455687,-1429.73,0.00027712,2]
[341588149,1731011455696,-727.36,0.00027712,2]
[341588150,1731011455705,-1857.64,0.00027712,2]
[341588151,1731011455714,-1048.23,0.00027712,2]
[341588152,1731011455723,-2351.69,0.00027712,2]
[341588153,1731011455732,-1216.18,0.00027712,2]
[341588154,1731011455741,-3235.8,0.00027712,2]
[341588155,1731011455750,-641.07,0.00027712,2]
[341588156,1731011455759,-602.15,0.00027712,2]
[341588157,1731011455769,-580.34,0.00027712,2]
[341588158,1731011455778,-649.63,0.00027712,2]
[341588159,1731011455787,-543.93,0.00027712,2]
[341588160,1731011455796,-500.0,0.00027713,2]
[341588161,1731011455806,-500.0,0.00027713,2]
[341588162,1731011455815,-500.0,0.00027713,2]
[341588163,1731011455824,-500.0,0.00027713,2]
[341588164,1731011455833,-500.0,0.00027713,2]
[341588165,1731011455842,-500.0,0.00027713,2]
[341588166,1731011455851,-500.0,0.00027713,2]
[341588167,1731011455861,-628.73996664,0.00027713,2]
[341588168,1731011455872,-500.0,0.00027713,2]
[341588169,1731011455882,-500.0,0.00027713,2]
[341588170,1731011455891,-192.08542672,0.00027713,2]
[341588171,1731011455900,-718.23,0.00027713,2]
[341588172,1731011455910,-500.0,0.00027713,2]
[341588173,1731011455919,-607.83,0.00027713,2]
[341588174,1731011455928,-500.0,0.00027713,2]
[341588175,1731011455938,-500.0,0.00027713,2]
[341588176,1731011455948,-760.46,0.00027713,2]
[341588177,1731011455959,-500.0,0.00027713,2]
[341588178,1731011455968,-500.0,0.00027713,2]
[341588179,1731011455978,-500.0,0.00027713,2]
[341588180,1731011455987,-500.0,0.00027713,2]
[341588181,1731011455997,-500.0,0.00027713,2]
[341588182,1731011456006,-500.0,0.00027713,2]
[341588183,1731011456015,-500.0,0.00027713,2]
[341588184,1731011456026,-1078.76,0.00027713,2]
[341588185,1731011456038,-500.0,0.00027713,2]
[341588186,1731011456047,-500.0,0.00027713,2]
[341588187,1731011456056,-500.0,0.00027713,2]
[341588188,1731011456065,-621.09,0.00027713,2]
[341588189,1731011456074,-500.0,0.00027713,2]
[341588190,1731011456083,-636.57,0.00027713,2]
[341588191,1731011456092,-500.0,0.00027713,2]
[341588192,1731011456100,-675.43,0.00027713,2]
[341588193,1731011456110,-971.89,0.00027713,2]
[341588194,1731011456122,-500.0,0.00027713,2]
[341588195,1731011456131,-846.9,0.00027713,2]
[341588196,1731011456139,-500.0,0.00027713,2]
[341588197,1731011456148,-503.63112574,0.00027713,2]
[341588198,1731011456157,-500.0,0.00027713,2]
[341588199,1731011456166,-904.79,0.00027713,2]
[341588200,1731011456175,-572.85,0.00027713,2]
[341588201,1731011456184,-500.0,0.00027713,2]
[341588202,1731011456194,-500.0,0.00027713,2]
[341588203,1731011456203,-2160.92,0.00027713,2]
[341588204,1731011456213,-1767.52,0.00027713,2]
[341588205,1731011456222,-500.0,0.00027713,2]
[341588206,1731011456232,-491.04595752,0.00027713,2]
[341588207,1731011456241,-1023.78,0.00027713,2]
[341588208,1731011456250,-829.37,0.00027713,2]
[341588209,1731011456259,-387.40177891,0.00027713,2]
[341588210,1731011456268,-500.0,0.00027713,2]
[341588211,1731011456277,-500.0,0.00027713,2]
[341588212,1731011456286,-500.0,0.00027713,2]
[341588213,1731011456295,-500.0,0.00027713,2]
[341588214,1731011456304,-533.07,0.00027713,2]
[341588215,1731011456314,-500.0,0.00027713,2]
[341588216,1731011456323,-500.0,0.00027713,2]
[341588217,1731011456332,-500.0,0.00027713,2]
[341588218,1731011456341,-500.0,0.00027713,2]
[341588219,1731011456350,-500.0,0.00027713,2]
[341588220,1731011456359,-974.74,0.00027713,2]
[341588221,1731011456369,-500.0,0.00027713,2]
[341588222,1731011456378,-896.64,0.00027713,2]
[341588223,1731011456387,-1608.14,0.00027713,2]
[341588224,1731011456396,-552.79,0.00027713,2]
[341588225,1731011456405,-500.0,0.00027713,2]
[341588226,1731011456414,-990.97,0.00027713,2]
[341588227,1731011456425,-2519.45,0.00027713,2]
[341588228,1731011456434,-500.0,0.00027713,2]
[341588229,1731011456443,-500.0,0.00027713,2]
[341588230,1731011456452,-1019.7,0.00027713,2]
[341588231,1731011456462,-500.0,0.00027713,2]
[341588232,1731011456471,-581.28378196,0.00027713,2]
[341588233,1731011456480,-500.0,0.00027713,2]
[341588234,1731011456489,-151.0,0.00027713,7]
[341588235,1731011456498,-601.24,0.00027713,2]
[341588236,1731011456507,-774.76,0.00027713,2]
[341588237,1731011456516,-500.0,0.00027713,2]
[341588238,1731011456525,-500.0,0.00027713,2]
[341588239,1731011456534,-4435.81,0.00027713,2]
[341588240,1731011456543,-538.61,0.00027713,2]
[341588241,1731011456552,-551.51,0.00027713,2]
[341588242,1731011456561,-1241.37,0.00027713,2]
[341588243,1731011456570,-500.0,0.00027713,2]
[341588244,1731011456580,-151.0,0.00027713,7]
[341588245,1731011456589,-151.0,0.00027713,7]
[341588246,1731011456598,-778.73,0.00027713,2]
[341588247,1731011456607,-500.0,0.00027713,2]
[341588248,1731011456617,-151.0,0.00027713,7]
[341588249,1731011456626,-500.0,0.00027713,2]
[341588250,1731011456769,-518.46,0.00027713,2]
[341588251,1731011456794,-500.0,0.00027713,2]
[341588252,1731011456804,-679.23,0.00027713,2]
[341588253,1731011456813,-500.0,0.00027713,2]
[341588254,1731011456822,-500.0,0.00027713,2]
[341588255,1731011456832,-530.41,0.00027713,2]
[341588256,1731011456841,-151.0,0.00027713,7]
[341588257,1731011456850,-500.0,0.00027713,2]
[341588258,1731011456859,-500.0,0.00027713,2]
[341588259,1731011456870,-151.0,0.00027713,7]
[341588260,1731011456879,-500.0,0.00027713,2]
[341588261,1731011456889,-500.0,0.00027713,2]
[341588262,1731011456898,-622.26,0.00027713,2]
[341588263,1731011456908,-677.13,0.00027713,2]
[341588264,1731011456918,-500.0,0.00027713,2]
[341588265,1731011456927,-500.0,0.00027713,2]
[341588266,1731011456936,-1177.17,0.00027713,2]
[341588267,1731011456946,-500.0,0.00027713,2]
[341588268,1731011456959,-500.0,0.00027713,2]
[341588269,1731011456968,-500.0,0.00027713,2]
[341588270,1731011456978,-500.0,0.00027713,2]
[341588271,1731011456988,-1091.31,0.00027713,2]
[341588272,1731011456998,-522.84,0.00027713,2]
[341588273,1731011457007,-661.37,0.00027713,2]
[341588274,1731011457017,-151.0,0.00027713,7]
[341588275,1731011457026,-599.74,0.00027713,2]
[341588276,1731011457035,-1275.41,0.00027713,2]
[341588277,1731011457045,-1084.34,0.00027713,2]
[341588278,1731011457054,-500.0,0.00027713,2]
[341588279,1731011457064,-500.0,0.00027713,2]
[341588280,1731011457074,-315.57855237,0.00027713,2]
[341588281,1731011457083,-827.61,0.00027713,2]
[341588282,1731011457092,-1858.207835,0.00027713,7]
[341588283,1731011457101,-500.0,0.00027713,2]
[341588284,1731011457111,-500.0,0.00027713,2]
[341588285,1731011457124,-1858.207835,0.00027713,7]
[341588286,1731011457133,-800.46,0.00027713,2]
[341588287,1731011457143,-500.0,0.00027713,2]
[341588288,1731011457153,-581.87,0.00027713,2]
[341588289,1731011457162,-500.0,0.00027713,2]
[341588290,1731011457172,-151.0,0.00027713,7]
[341588291,1731011457181,-500.0,0.00027713,2]
[341588292,1731011457191,-500.0,0.00027713,2]
[341588293,1731011457201,-863.17,0.00027713,2]
[341588294,1731011457210,-500.0,0.00027713,2]
[341588295,1731011457220,-458.98,0.00027713,2]
[341588296,1731011457231,-151.0,0.00027713,7]
[341588297,1731011457241,-546.47,0.00027713,2]
[341588298,1731011457250,-500.0,0.00027713,2]
[341588299,1731011457260,-500.0,0.00027713,2]
[341588300,1731011457269,-196.027821,0.00027713,7]
[341588301,1731011457278,-500.0,0.00027713,2]
[341588302,1731011457288,-707.95,0.00027713,2]
[341588303,1731011457297,-196.027821,0.00027713,7]
[341588304,1731011457306,-3273.297285,0.00027713,7]
[341588305,1731011457316,-500.0,0.00027713,2]
[341588306,1731011457326,-963.34,0.00027713,2]
[341588307,1731011457336,-500.0,0.00027713,2]
[341588308,1731011457345,-500.0,0.00027713,2]
[341588309,1731011457354,-1137.63,0.00027713,2]
[341588310,1731011457365,-512.69,0.00027713,2]
[341588311,1731011457374,-151.0,0.00027713,7]
[341588312,1731011457384,-500.0,0.00027713,2]
[341588313,1731011457394,-2127.02,0.00027713,2]
[341588314,1731011457404,-500.0,0.00027713,2]
[341588315,1731011457413,-890.32,0.00027713,2]
[341588316,1731011457424,-1288.66,0.00027713,2]
[341588317,1731011457433,-500.0,0.00027713,2]
[341588318,1731011457442,-500.0,0.00027713,2]
[341588319,1731011457452,-503.11,0.00027713,2]
[341588320,1731011457463,-304.431527,0.00027713,2]
[341588321,1731011457473,-500.0,0.00027713,2]
[341588322,1731011457482,-304.431527,0.00027713,2]
[341588323,1731011457491,-1530.92,0.00027713,2]
[341588324,1731011457500,-151.0,0.00027713,7]
[341588325,1731011457510,-214.6291475,0.00027713,2]
[341588326,1731011457522,-500.0,0.00027713,2]
[341588327,1731011457531,-785.3,0.00027713,2]
[341588328,1731011457542,-500.0,0.00027713,2]
[341588329,1731011457552,-500.0,0.00027713,2]
[341588330,1731011457563,-954.08,0.00027713,2]
[341588331,1731011457573,-500.0,0.00027713,2]
[341588332,1731011457583,-500.0,0.00027713,2]
[341588333,1731011457593,-1375.62,0.00027713,2]
[341588334,1731011457604,-500.0,0.00027713,2]
[341588335,1731011457614,-618.68,0.00027713,2]
[341588336,1731011457623,-151.0,0.00027713,7]
[341588337,1731011457632,-554.15,0.00027713,2]
[341588338,1731011457641,-508.01,0.00027713,2]
[341588339,1731011457650,-500.0,0.00027713,2]
[341588340,1731011457659,-706.5,0.00027713,2]
[341588341,1731011457669,-500.0,0.00027713,2]